bitfinex/quotes_BTCUSD_20251205
["timestamp","ask_amount","ask_price","bid_price","bid_amount"]
[1764959827244,0.2242803,89332.0,89331.0,0.04014238]
[1764959827447,0.2242803,89332.0,89331.0,0.06337238]
[1764959827651,0.2242803,89332.0,89331.0,0.0182]
[1764959827857,0.2242803,89332.0,89331.0,0.04014238]
[1764959828420,0.2242803,89332.0,89331.0,0.001]
[1764959828421,0.22589317,89332.0,89331.0,0.001]
[1764959828647,0.22392655,89315.0,89314.0,0.16603664]
[1764959829045,0.22392655,89315.0,89314.0,0.18123664]
[1764959829265,0.22392655,89315.0,89314.0,0.20446664]
[1764959829933,0.22392655,89315.0,89314.0,0.06037238]
[1764959830377,0.22492655,89315.0,89314.0,0.06037238]
[1764959830754,0.22392655,89315.0,89314.0,0.06237238]
[1764959831697,0.22392655,89315.0,89314.0,0.03914238]
[1764959831966,0.22492655,89315.0,89314.0,0.03914238]
[1764959832166,0.22492655,89315.0,89312.0,0.02194238]
[1764959832167,0.22393156,89313.0,89312.0,0.02194238]
[1764959832836,0.22394661,89307.0,89306.0,0.01226]
[1764959833044,0.22394661,89307.0,89306.0,0.15635426]
[1764959833244,0.23513821,89310.0,89309.0,0.02194238]
[1764959833444,0.01119682,89311.0,89310.0,0.02194238]
[1764959833604,0.23512521,89315.0,89311.0,0.02194238]
[1764959833810,0.23511822,89317.0,89310.0,0.03843]
[1764959833811,0.01119607,89317.0,89314.0,0.25032524]
[1764959833999,0.01119557,89321.0,89320.0,0.02194238]
[1764959834194,0.01119557,89321.0,89320.0,0.04855238]
[1764959834399,0.01119557,89321.0,89320.0,0.07178238]
[1764959834796,0.01119457,89329.0,89324.0,0.02194238]
[1764959835036,0.01119519,89324.0,89321.0,0.04562115]
[1764959835251,0.23510082,89324.0,89323.0,0.03714238]
[1764959835439,0.23510082,89324.0,89323.0,0.06037238]
[1764959836497,0.001,89329.0,89328.0,0.02194238]
[1764959836717,0.22389145,89329.0,89328.0,0.03714238]
[1764959836909,0.22389145,89329.0,89328.0,0.06037238]
[1764959837194,0.22389145,89329.0,89328.0,0.03714238]
[1764959837335,0.22389145,89329.0,89328.0,0.06037238]
[1764959838592,0.22389145,89329.0,89328.0,0.06137238]
[1764959838793,0.22589145,89329.0,89328.0,0.06137238]
[1764959838994,0.002,89329.0,89328.0,0.28526634]
[1764959840023,0.002,89329.0,89328.0,0.06137238]
[1764959840183,0.22589145,89329.0,89328.0,0.06137238]
[1764959841759,0.002,89329.0,89328.0,0.06137238]
[1764959842422,0.002,89329.0,89328.0,0.28526634]
[1764959842851,0.002,89329.0,89328.0,0.06137238]
[1764959842852,0.22589145,89329.0,89328.0,0.06137238]
[1764959843043,0.22589145,89329.0,89328.0,0.03814238]
[1764959843643,0.22589145,89329.0,89328.0,0.06137238]
[1764959844751,0.22589145,89329.0,89328.0,0.20546664]
[1764959845860,0.002,89329.0,89328.0,0.4293606]
[1764959847332,0.002,89329.0,89328.0,0.4283606]
[1764959847851,0.002,89329.0,89328.0,0.4293606]
[1764959848031,0.00039637,89332.0,89331.0,0.02194238]
[1764959848202,0.00039637,89332.0,89331.0,0.03714238]
[1764959848389,0.00039637,89332.0,89331.0,0.28425882]
[1764959849235,0.00039637,89332.0,89331.0,0.06137238]
[1764959849397,0.2252803,89332.0,89331.0,0.06137238]
[1764959849792,0.2252803,89332.0,89331.0,0.28525882]
[1764959849793,0.00139637,89332.0,89331.0,0.28525882]
[1764959850613,0.00139637,89332.0,89331.0,0.42935308]
[1764959851804,0.2252803,89332.0,89331.0,0.20546664]
[1764959852648,0.2252803,89332.0,89331.0,0.16703664]
[1764959853273,0.22689317,89332.0,89331.0,0.16703664]
[1764959854148,0.22689317,89332.0,89331.0,0.14509426]
[1764959855001,0.27054651,89332.0,89331.0,0.001]
[1764959855149,0.54989317,89332.0,89331.0,0.001]
[1764959856389,0.54889317,89332.0,89331.0,0.001]
[1764959856605,0.223909,89322.0,89321.0,0.14409426]
[1764959857891,0.223909,89322.0,89321.0,0.14509426]
[1764959859575,0.223909,89322.0,89321.0,0.001]
[1764959865058,0.3157098,89322.0,89321.0,0.001]
[1764959865358,0.223909,89322.0,89321.0,0.001]
[1764959865560,0.226909,89322.0,89321.0,0.001]
[1764959865711,0.226909,89322.0,89311.0,0.01151]
[1764959865712,0.22393211,89313.0,89311.0,0.01151]
[1764959865910,0.22393407,89312.0,89311.0,0.03345238]
[1764959866313,0.22393407,89312.0,89311.0,0.07400238]
[1764959866910,0.23513045,89314.0,89311.0,0.05306]
[1764959867108,0.23513045,89314.0,89313.0,0.03848238]
[1764959867562,0.22392531,89316.0,89313.0,0.27614813]
[1764959867901,0.22392531,89316.0,89311.0,0.24664319]
[1764959867902,0.22392531,89316.0,89315.0,0.03829238]
[1764959868038,0.22392531,89316.0,89315.0,0.02194238]
[1764959868437,0.22392531,89316.0,89315.0,0.03829238]
[1764959869963,0.22392531,89316.0,89315.0,0.06277238]
[1764959870568,0.22392531,89316.0,89315.0,0.03929238]
[1764959870768,0.22592531,89316.0,89315.0,0.03929238]
[1764959871009,0.22392531,89316.0,89315.0,0.03929238]
[1764959871201,0.22393407,89312.0,89311.0,0.01151]
[1764959871356,0.22393407,89312.0,89311.0,0.03599]
[1764959871562,0.22393407,89312.0,89311.0,0.07428238]
[1764959872149,0.22387807,89312.0,89311.0,0.07428238]
[1764959873009,0.22393212,89313.0,89312.0,0.02194238]
[1764959873215,0.22393212,89313.0,89312.0,0.06277238]
[1764959874098,0.23512556,89314.0,89313.0,0.02194238]
[1764959874303,0.23512556,89314.0,89313.0,0.06277238]
[1764959875237,0.23512556,89314.0,89313.0,0.03829238]
[1764959875439,0.22393407,89312.0,89311.0,0.01251]
[1764959875612,0.22393407,89312.0,89311.0,0.03445238]
[1764959875817,0.22393407,89312.0,89311.0,0.001]
[1764959875970,0.22393156,89313.0,89301.0,0.01151]
[1764959875971,0.22395914,89302.0,89301.0,0.01151]
[1764959876174,0.22395914,89302.0,89301.0,0.15560426]
[1764959876397,0.22395914,89302.0,89301.0,0.17195426]
[1764959876803,0.22396667,89299.0,89298.0,0.14409426]
[1764959877215,0.22396667,89299.0,89298.0,0.14421282]
[1764959878062,0.22396667,89299.0,89298.0,0.14521282]
[1764959880292,0.22396667,89299.0,89298.0,0.00111856]
[1764959882201,0.24096667,89299.0,89298.0,0.00111856]
[1764959882705,0.24396667,89299.0,89298.0,0.00111856]
[1764959883128,0.22396667,89299.0,89298.0,0.00011856]
[1764959883495,0.22596667,89299.0,89298.0,0.00011856]
[1764959884324,0.24372667,89299.0,89298.0,0.00011856]
[1764959884527,0.25972667,89299.0,89298.0,0.00111856]
[1764959886556,0.24196667,89299.0,89298.0,0.00111856]
[1764959886756,0.24196667,89299.0,89298.0,0.06182094]
[1764959886963,0.24196667,89299.0,89298.0,0.03814094]
[1764959887132,0.24196667,89299.0,89298.0,0.02306094]
[1764959887741,0.24196667,89299.0,89298.0,0.06182094]
[1764959888631,0.24196667,89299.0,89298.0,0.03814094]
[1764959888828,0.24196667,89299.0,89298.0,0.02306094]
[1764959889043,0.35559074,89299.0,89298.0,0.00111856]
[1764959889243,5.67859074,89299.0,89298.0,0.00111856]
[1764959890366,5.74111373,89299.0,89298.0,0.00111856]
[1764959890622,0.22404696,89267.0,89266.0,0.14409426]
[1764959890848,0.21596704,89259.0,89258.0,0.02704]
[1764959891078,0.21596704,89259.0,89258.0,0.04898238]
[1764959891289,0.224065,89260.0,89259.0,0.02194238]
[1764959891496,0.224065,89260.0,89259.0,0.03702238]
[1764959891705,0.224065,89260.0,89259.0,0.06070238]
[1764959892138,0.2352602,89263.0,89262.0,0.02194238]
[1764959892568,0.2352602,89263.0,89262.0,0.06070238]
[1764959893669,0.2352602,89263.0,89262.0,0.06270238]
[1764959894495,0.2352602,89263.0,89262.0,0.06670238]
[1764959894934,0.2352602,89263.0,89262.0,0.04302238]
[1764959895407,0.2352602,89263.0,89262.0,0.19182238]
[1764959895856,0.2352602,89263.0,89262.0,0.1548]
[1764959896069,0.2352602,89263.0,89262.0,0.16988]
[1764959896289,0.2352602,89263.0,89262.0,0.1548]
[1764959897016,5.30858223,89263.0,89262.0,0.004]
[1764959897228,5.37110522,89263.0,89262.0,0.004]
[1764959897434,5.37110522,89263.0,89262.0,0.001]
[1764959897802,5.37210522,89263.0,89262.0,0.008]
[1764959898175,5.69510522,89263.0,89262.0,0.008]
[1764959898593,5.69410522,89263.0,89262.0,0.001]
[1764959899110,5.70510522,89263.0,89262.0,0.001]
[1764959899307,5.70510522,89263.0,89242.0,0.00024273]
[1764959899308,5.46984502,89263.0,89242.0,0.00024273]
[1764959899520,0.22410721,89243.0,89242.0,0.00024273]
[1764959899766,5.24348008,89243.0,89242.0,0.00024273]
[1764959899999,0.22572008,89243.0,89242.0,0.00024273]
[1764959900218,0.24348008,89243.0,89242.0,0.00024273]
[1764959900620,0.22572008,89243.0,89242.0,0.00024273]
[1764959900829,0.22410721,89243.0,89242.0,0.06194511]
[1764959901268,0.22410721,89243.0,89242.0,0.06094511]
[1764959901686,0.22510721,89243.0,89242.0,0.06794511]
[1764959902019,0.22510721,89243.0,89242.0,0.06894511]
[1764959903346,0.001,89243.0,89242.0,0.06894511]
[1764959903553,0.22510721,89243.0,89242.0,0.06894511]
[1764959904346,0.22410721,89243.0,89242.0,0.06194511]
[1764959904752,0.22510721,89243.0,89242.0,0.06994511]
[1764959904963,0.001,89243.0,89242.0,0.06994511]
[1764959905290,0.001,89243.0,89242.0,0.06894511]
[1764959905528,0.001,89243.0,89242.0,0.06994511]
[1764959906718,0.001,89243.0,89242.0,0.24115608]
[1764959906919,0.001,89243.0,89242.0,0.21874511]
[1764959907342,0.001,89243.0,89242.0,0.24115608]
[1764959907677,0.001,89243.0,89242.0,0.09235608]
[1764959908073,0.001,89243.0,89242.0,0.41535608]
[1764959908243,0.001,89243.0,89242.0,0.61705483]
[1764959908423,0.01120485,89247.0,89243.0,0.23531079]
[1764959908626,0.23530465,89246.0,89245.0,0.02194238]
[1764959909024,0.23530465,89246.0,89245.0,0.06070238]
[1764959911030,0.01120423,89252.0,89249.0,0.0112046]
[1764959911203,0.22416583,89267.0,89266.0,0.03702238]
[1764959911360,0.22416583,89267.0,89266.0,0.04898238]
[1764959911569,0.01120473,89248.0,89245.0,0.01296]
[1764959911767,0.01120473,89248.0,89247.0,0.02194238]
[1764959911987,0.01120473,89248.0,89247.0,0.03702238]
[1764959912186,0.23529938,89248.0,89247.0,0.06070238]
[1764959912620,0.01120473,89248.0,89247.0,0.06070238]
[1764959912821,0.22409351,89249.0,89248.0,0.02194238]
[1764959913035,0.01120435,89251.0,89250.0,0.02194238]
[1764959913237,0.22409267,89249.0,89248.0,0.02194238]
[1764959913440,0.22409267,89249.0,89248.0,0.03808238]
[1764959913850,0.22409267,89249.0,89248.0,0.04001]
[1764959914026,0.22409267,89249.0,89248.0,0.06195238]
[1764959914427,0.22509267,89249.0,89248.0,0.06195238]
[1764959914709,0.22509267,89249.0,89248.0,0.06295238]
[1764959915191,0.22509267,89249.0,89248.0,0.06195238]
[1764959915601,0.22509267,89249.0,89248.0,0.06295238]
[1764959915817,0.22509267,89249.0,89248.0,0.28704703]
[1764959915818,0.001,89249.0,89248.0,0.28704703]
[1764959916024,0.00011887,89267.0,89260.0,0.01120322]
[1764959916253,0.23536962,89267.0,89266.0,0.04987238]
[1764959916485,0.00011887,89267.0,89266.0,0.27392185]
[1764959916705,0.22416583,89267.0,89266.0,0.04987238]
[1764959916945,0.22416583,89267.0,89266.0,0.07374238]
[1764959917423,0.22416583,89267.0,89258.0,0.03373238]
[1764959917424,0.22406704,89259.0,89258.0,0.03373238]
[1764959917978,0.22406704,89259.0,89258.0,0.04987238]
[1764959918432,0.22406704,89259.0,89258.0,0.07374238]
[1764959918639,0.22506704,89259.0,89258.0,0.07374238]
[1764959919292,0.22506704,89259.0,89258.0,0.07474238]
[1764959919469,0.001,89259.0,89258.0,0.29881193]
[1764959921906,0.001,89259.0,89258.0,0.27686955]
[1764959922119,0.001,89259.0,89258.0,0.29881193]
[1764959925121,0.001,89259.0,89258.0,0.07474238]
[1764959925672,0.001,89259.0,89258.0,0.29881193]
[1764959927115,0.001,89259.0,89258.0,0.07474238]
[1764959927578,0.001,89259.0,89258.0,0.29881193]
[1764959927947,0.001,89259.0,89258.0,0.44761193]
[1764959929453,0.001,89259.0,89258.0,0.78837193]
[1764959930107,0.001,89259.0,89258.0,0.78737193]
[1764959930286,0.001,89259.0,89258.0,0.78937193]
[1764959930485,0.00011887,89267.0,89266.0,0.24599185]
[1764959930681,0.00011887,89267.0,89266.0,0.26106185]
[1764959930931,0.00011887,89267.0,89266.0,0.28513185]
[1764959932589,0.00011887,89267.0,89266.0,0.28613185]
[1764959932973,0.00011887,89267.0,89266.0,0.43493185]
[1764959933377,0.00011887,89267.0,89266.0,0.75793185]
[1764959933778,0.00011887,89267.0,89266.0,0.81678005]
[1764959934021,0.00011887,89267.0,89266.0,0.81878005]
[1764959934221,0.00011887,89267.0,89266.0,0.75793185]
[1764959934656,0.00011887,89267.0,89266.0,0.73798947]
[1764959934799,0.00011887,89267.0,89266.0,0.75993185]
[1764959935008,0.00011887,89267.0,89266.0,0.77769185]
[1764959935266,0.00011887,89267.0,89266.0,0.45469185]
[1764959935484,0.00011887,89267.0,89266.0,0.22964238]
[1764959935636,0.22416583,89267.0,89266.0,0.22964238]
[1764959936197,0.22416583,89267.0,89266.0,0.23164238]
[1764959936455,0.00011887,89267.0,89266.0,0.23164238]
[1764959936666,0.22416583,89267.0,89266.0,0.23164238]
[1764959936879,0.22416583,89267.0,89266.0,0.1528]
[1764959937015,0.22416583,89267.0,89266.0,0.17474238]
[1764959937444,0.22416583,89267.0,89266.0,0.18981238]
[1764959938045,0.22416583,89267.0,89266.0,0.18781238]
[1764959938324,0.22616583,89267.0,89266.0,0.17274238]
[1764959938546,0.22616583,89267.0,89266.0,0.17074238]
[1764959938993,0.22616583,89267.0,89266.0,0.17174238]
[1764959939545,0.22616583,89267.0,89266.0,0.1498]
[1764959940770,0.22616583,89267.0,89266.0,0.18681238]
[1764959940993,0.22616583,89267.0,89266.0,0.21088238]
[1764959941209,0.00211887,89267.0,89266.0,0.21088238]
[1764959942385,0.00211887,89267.0,89266.0,0.23328732]
[1764959942596,0.00211887,89267.0,89266.0,0.45733679]
[1764959942819,0.00211887,89267.0,89266.0,0.43493185]
[1764959943471,0.00211887,89267.0,89266.0,0.43393185]
[1764959944001,0.22616583,89267.0,89266.0,0.20988238]
[1764959944244,0.22416583,89267.0,89266.0,0.20988238]
[1764959944759,0.22416583,89267.0,89266.0,0.1518]
[1764959944915,0.22416583,89267.0,89266.0,0.1498]
[1764959945122,0.22416583,89267.0,89266.0,0.1488]
[1764959945325,0.22516583,89267.0,89266.0,0.21131238]
[1764959945513,0.22516583,89267.0,89266.0,0.21231238]
[1764959945887,0.22416583,89267.0,89266.0,0.17174238]
[1764959946082,0.22416583,89267.0,89266.0,0.17074238]
[1764959946484,0.22416583,89267.0,89266.0,0.1488]
[1764959947039,0.22616583,89267.0,89266.0,0.21131238]
[1764959947667,0.00211887,89267.0,89266.0,0.21131238]
[1764959948274,0.00211887,89267.0,89266.0,0.23471732]
[1764959948275,0.00011887,89267.0,89266.0,0.23471732]
[1764959948675,0.00011887,89267.0,89266.0,0.23371732]
[1764959949139,0.00011887,89267.0,89266.0,0.23471732]
[1764959949263,0.00011887,89267.0,89266.0,0.62024031]
[1764959949466,0.00011887,89267.0,89266.0,0.59683537]
[1764959950292,0.00011887,89267.0,89266.0,0.59883537]
[1764959950499,1.783e-05,89267.0,89266.0,0.59883537]
[1764959950703,1.783e-05,89267.0,89266.0,0.59683537]
[1764959950905,1.783e-05,89267.0,89266.0,0.60283537]
[1764959951342,1.783e-05,89267.0,89266.0,0.60383537]
[1764959951558,1.783e-05,89267.0,89266.0,0.54131238]
[1764959951917,1.783e-05,89267.0,89266.0,0.54031238]
[1764959952126,1.783e-05,89267.0,89266.0,0.21931238]
[1764959952709,1.783e-05,89267.0,89266.0,0.21731238]
[1764959952933,1.783e-05,89267.0,89266.0,0.21931238]
[1764959953207,1.783e-05,89267.0,89266.0,0.21331238]
[1764959953613,1.783e-05,89267.0,89266.0,0.46376679]
[1764959953872,1.783e-05,89267.0,89266.0,0.44136185]
[1764959955062,1.783e-05,89267.0,89266.0,0.48158347]
[1764959955433,1.783e-05,89267.0,89266.0,0.44136185]
[1764959955984,1.783e-05,89267.0,89266.0,0.45912185]
[1764959956187,1.783e-05,89267.0,89266.0,0.23507238]
[1764959957184,1.783e-05,89267.0,89266.0,0.45912185]
[1764959958360,0.22406479,89267.0,89266.0,0.23507238]
[1764959958535,0.22406479,89267.0,89266.0,0.21731238]
[1764959958927,1.783e-05,89267.0,89266.0,0.21731238]
[1764959959121,0.22406479,89267.0,89266.0,0.21731238]
[1764959960764,1.783e-05,89267.0,89266.0,0.21731238]
[1764959960994,0.01119996,89286.0,89277.0,0.01120109]
[1764959961159,0.01119996,89286.0,89273.0,0.01120159]
[1764959961160,0.22400179,89285.0,89283.0,0.02194238]
[1764959961358,0.22400179,89285.0,89284.0,0.1488]
[1764959961544,0.22400179,89285.0,89284.0,0.18937]
[1764959961744,0.23518399,89292.0,89288.0,0.01119971]
[1764959962039,0.01119908,89293.0,89292.0,0.03853238]
[1764959962459,0.01119908,89293.0,89292.0,0.06251238]
[1764959962688,0.01119908,89293.0,89285.0,0.01120008]
[1764959962689,0.22400931,89282.0,89281.0,0.03320238]
[1764959962896,0.22400931,89282.0,89281.0,0.02194238]
[1764959963958,0.22400931,89282.0,89281.0,0.03853238]
[1764959964182,0.22400931,89282.0,89281.0,0.06251238]
[1764959964625,0.22400931,89282.0,89281.0,0.06351238]
[1764959965511,0.01120021,89284.0,89282.0,0.02194238]
[1764959965512,0.22400484,89284.0,89282.0,0.02194238]
[1764959965725,0.22400485,89284.0,89283.0,0.03853238]
[1764959965946,0.01119958,89289.0,89287.0,0.02194238]
[1764959966160,0.01119958,89289.0,89288.0,0.06251238]
[1764959966592,0.01119946,89290.0,89289.0,0.02194238]
[1764959966808,0.01119946,89290.0,89289.0,0.06251238]
[1764959967027,0.2240043,89284.0,89283.0,0.02194238]
[1764959967452,0.2240043,89284.0,89283.0,0.06251238]
[1764959967654,0.22401935,89278.0,89277.0,0.03970238]
[1764959968364,0.22401935,89278.0,89277.0,0.08027238]
[1764959969177,0.23521075,89282.0,89281.0,0.02194238]
[1764959969524,0.23521075,89282.0,89281.0,0.06251238]
[1764959970584,0.23521075,89282.0,89281.0,0.06351238]
[1764959970789,0.23521075,89282.0,89281.0,0.02294238]
[1764959970990,0.23682362,89282.0,89281.0,0.001]
[1764959972525,0.22403943,89270.0,89269.0,0.03320238]
[1764959973614,0.22403943,89270.0,89269.0,0.07431238]
[1764959974001,0.22403943,89270.0,89269.0,0.04962238]
[1764959974341,0.22603943,89270.0,89269.0,0.001]
[1764959974577,0.22403943,89270.0,89269.0,0.001]
[1764959975061,0.22703943,89270.0,89269.0,0.001]
[1764959975310,0.22403943,89270.0,89269.0,0.001]
[1764959975524,0.22403943,89270.0,89265.0,0.02194238]
[1764959975525,0.22404947,89266.0,89265.0,0.02194238]
[1764959976170,0.22404947,89266.0,89265.0,0.03736238]
[1764959977215,0.22604947,89266.0,89265.0,0.03736238]
[1764959978560,0.22604947,89266.0,89265.0,0.02194238]
[1764959978761,0.22604947,89266.0,89265.0,0.02294238]
[1764959981065,0.22604947,89266.0,89265.0,0.03836238]
[1764959981455,0.22604947,89266.0,89265.0,0.18716238]
[1764959982210,0.22604947,89266.0,89265.0,0.21185238]
[1764959982837,0.22604947,89266.0,89265.0,0.18991]
[1764959983053,0.22604947,89266.0,89265.0,0.21185238]
[1764959983439,0.002,89266.0,89265.0,0.21185238]
[1764959983635,0.002,89266.0,89265.0,0.43590436]
[1764959984458,0.01120184,89271.0,89267.0,0.22404481]
[1764959984663,0.23523876,89271.0,89270.0,0.02194238]
[1764959984885,0.01120184,89271.0,89270.0,0.03736238]
[1764959985083,0.23523876,89271.0,89270.0,0.06205238]
[1764959986141,0.23523876,89271.0,89270.0,0.03736238]
[1764959986555,0.23623876,89271.0,89270.0,0.03836238]
[1764959987280,0.01220184,89271.0,89270.0,0.06305238]
[1764959987486,0.22503692,89271.0,89270.0,0.21185238]
[1764959988308,0.001,89271.0,89270.0,0.43589181]
[1764959988555,0.001,89271.0,89270.0,0.21185238]
[1764959988961,0.22503692,89271.0,89270.0,0.21185238]
[1764959989078,0.22503692,89271.0,89270.0,0.18716238]
[1764959989277,0.22503692,89271.0,89270.0,0.16522]
[1764959989485,0.22503692,89271.0,89270.0,0.21114238]
[1764959992251,0.001,89271.0,89270.0,0.43518181]
[1764959993541,0.001,89271.0,89270.0,0.45763266]
[1764959994281,0.01120109,89277.0,89276.0,0.02194238]
[1764959994496,0.23522139,89278.0,89277.0,0.02194238]
[1764959994737,0.23522139,89278.0,89277.0,0.06190238]
[1764959994738,0.01120096,89278.0,89277.0,0.06190238]
[1764959995575,0.23521985,89280.0,89279.0,0.02194238]
[1764959995785,0.23521985,89280.0,89279.0,0.03792238]
[1764959996082,0.01120034,89283.0,89279.0,0.05116084]
[1764959996404,0.44788667,89309.0,89286.0,0.02194238]
[1764959996405,0.2351966,89287.0,89286.0,0.02194238]
[1764959996607,0.00011916,89287.0,89286.0,0.39474166]
[1764959996757,0.00011916,89287.0,89286.0,0.77546166]
[1764959997086,0.01119657,89313.0,89311.0,0.02194238]
[1764959997288,0.23512318,89315.0,89314.0,0.02194238]
[1764959997506,0.22390943,89322.0,89314.0,0.01119645]
[1764959997718,0.22390943,89322.0,89321.0,0.25704908]
[1764959997719,0.00039703,89322.0,89321.0,0.25704908]
[1764959997934,0.00039703,89322.0,89321.0,0.29078908]
[1764959998107,0.00039703,89322.0,89321.0,0.31476908]
[1764959998518,0.00039703,89322.0,89321.0,0.07966238]
[1764959999080,0.00039703,89322.0,89321.0,0.08066238]
[1764960000688,0.00139703,89322.0,89321.0,0.09223238]
[1764960002423,0.00139703,89322.0,89321.0,0.05049238]
[1764960002539,0.00139703,89322.0,89321.0,0.06825238]
[1764960003175,0.00139703,89322.0,89321.0,0.04631]
[1764960003428,0.00139703,89322.0,89321.0,0.03033]
[1764960003628,0.00139703,89322.0,89321.0,0.04639]
[1764960004019,0.00139703,89322.0,89321.0,0.001]
[1764960004678,0.00139703,89322.0,89321.0,0.02294238]
[1764960004881,0.00139703,89322.0,89321.0,0.001]
[1764960006429,0.01119783,89303.0,89302.0,0.02194238]
[1764960006646,0.01119783,89303.0,89291.0,0.02194238]
[1764960006647,0.22398423,89292.0,89291.0,0.02194238]
[1764960006881,0.22398423,89292.0,89291.0,0.05576238]
[1764960007085,0.22398423,89292.0,89291.0,0.01606]
[1764960007436,0.01119908,89293.0,89291.0,0.04097]
[1764960007699,0.0111967,89312.0,89292.0,0.03845842]
[1764960007867,1.11923486,89347.0,89314.0,0.02194238]
[1764960007868,0.01119632,89315.0,89314.0,0.02194238]
[1764960008067,0.00011911,89315.0,89314.0,0.17074238]
[1764960008269,0.00011911,89315.0,89314.0,0.06291238]
[1764960008442,0.00011911,89315.0,89314.0,0.43564143]
[1764960008989,0.22404566,89315.0,89314.0,0.21171238]
[1764960009382,0.22404566,89315.0,89314.0,0.18680238]
[1764960010121,0.22404566,89315.0,89314.0,0.20456238]
[1764960010330,0.22404566,89315.0,89314.0,0.17074238]
[1764960011252,0.22404566,89315.0,89314.0,0.1488]
[1764960011463,0.22565853,89315.0,89314.0,0.1488]
[1764960011679,0.22865853,89315.0,89314.0,0.1488]
[1764960014124,0.01119733,89307.0,89305.0,0.02194238]
[1764960014324,0.22394911,89306.0,89305.0,0.02194238]
[1764960015810,0.22494911,89306.0,89305.0,0.02194238]
[1764960016008,0.22494911,89306.0,89305.0,0.02294238]
[1764960016430,0.22494911,89306.0,89305.0,0.02194238]
[1764960016802,0.22494911,89306.0,89305.0,0.02294238]
[1764960017739,0.22494911,89306.0,89305.0,0.001]
[1764960018099,0.31798614,89306.0,89305.0,0.001]
[1764960018304,0.22494911,89306.0,89305.0,0.001]
[1764960018982,0.22395914,89302.0,89301.0,0.1488]
[1764960020183,0.22695914,89302.0,89301.0,0.1488]
[1764960020723,0.22395914,89302.0,89301.0,0.1488]
[1764960021281,0.23995914,89302.0,89301.0,0.1498]
[1764960021680,0.3351559,89302.0,89301.0,0.001]
[1764960021884,0.2240319,89273.0,89272.0,0.03435238]
[1764960022510,0.2240319,89273.0,89272.0,0.02194238]
[1764960022710,0.22404194,89269.0,89268.0,0.01241]
[1764960022972,0.22404194,89269.0,89268.0,0.01252916]
[1764960024083,0.22404194,89269.0,89268.0,0.00011916]
[1764960025081,0.22404194,89269.0,89268.0,0.00111916]
[1764960025283,0.22504194,89269.0,89268.0,0.01311916]
[1764960025507,0.22665481,89269.0,89268.0,0.01211916]
[1764960025965,0.22965481,89269.0,89268.0,0.01211916]
[1764960026192,0.22965481,89269.0,89255.0,0.01776]
[1764960026193,0.22410721,89243.0,89242.0,0.00024273]
[1764960026618,0.22572008,89243.0,89242.0,0.00024273]
[1764960027886,0.22410589,89244.0,89243.0,0.02194238]
[1764960028103,0.0112051,89245.0,89242.0,0.04121273]
[1764960028104,0.23530923,89245.0,89244.0,0.03800238]
[1764960028315,0.22410721,89243.0,89242.0,0.00824273]
[1764960028515,0.01120473,89248.0,89244.0,0.01606]
[1764960028719,0.22409214,89249.0,89247.0,0.02847]
[1764960029344,0.22409214,89249.0,89248.0,0.01606]
[1764960029554,0.22409214,89249.0,89248.0,0.03800238]
[1764960029765,0.01120448,89250.0,89249.0,0.02194238]
[1764960029967,0.01120448,89250.0,89249.0,0.03800238]
[1764960030182,0.01120448,89250.0,89249.0,0.06291238]
[1764960030381,0.01120448,89250.0,89249.0,0.03800238]
[1764960030786,0.01120448,89250.0,89249.0,0.02194238]
[1764960030992,0.01220448,89250.0,89249.0,0.02594238]
[1764960031595,0.01220448,89250.0,89249.0,0.06691238]
[1764960032051,0.01220448,89250.0,89249.0,0.04200238]
[1764960032264,0.01220448,89250.0,89249.0,0.02594238]
[1764960032487,0.01220448,89250.0,89249.0,0.004]
[1764960033365,0.01220448,89250.0,89249.0,0.04172238]
[1764960033567,0.01220448,89250.0,89249.0,0.02594238]
[1764960033780,0.01220448,89250.0,89249.0,0.004]
[1764960034194,0.01381735,89250.0,89249.0,0.004]
[1764960035441,0.10885204,89250.0,89249.0,0.004]
[1764960036278,0.2241047,89244.0,89242.0,0.00024273]
[1764960037986,0.2251047,89244.0,89242.0,0.00124273]
[1764960038154,0.2241047,89244.0,89242.0,0.00024273]
[1764960039014,0.2271047,89244.0,89242.0,0.00024273]
[1764960039227,0.09346336,89243.0,89242.0,0.00024273]
[1764960039669,5.09346336,89243.0,89242.0,0.00024273]
[1764960039881,5.41646336,89243.0,89242.0,0.00024273]
[1764960040302,2.64276336,89243.0,89242.0,0.00024273]
[1764960040523,0.323,89243.0,89242.0,0.00024273]
[1764960040769,0.336,89243.0,89242.0,0.00024273]
[1764960040979,0.013,89243.0,89242.0,0.00024273]
[1764960041190,0.016,89243.0,89242.0,0.00024273]
[1764960043514,0.339,89243.0,89242.0,0.00024273]
[1764960043713,0.44870506,89243.0,89242.0,0.00024273]
[1764960044484,0.67281227,89243.0,89242.0,0.00024273]
[1764960045790,0.56310721,89243.0,89242.0,0.00024273]
[1764960046366,0.58090721,89243.0,89242.0,0.0003616]
[1764960047647,0.24010721,89243.0,89242.0,0.02230398]
[1764960047855,0.24010721,89243.0,89242.0,0.03749398]
[1764960048065,0.24010721,89243.0,89242.0,0.06200398]
[1764960048510,0.24010721,89243.0,89242.0,0.03749398]
[1764960048710,0.23710721,89243.0,89242.0,0.02230398]
[1764960048864,0.23710721,89243.0,89242.0,0.0003616]
[1764960049227,0.33157054,89243.0,89242.0,0.0003616]
[1764960049430,0.23710721,89243.0,89242.0,0.0003616]
[1764960049633,0.22410721,89243.0,89242.0,0.0003616]
[1764960049851,0.22710721,89243.0,89242.0,0.0003616]
[1764960050274,0.22410721,89243.0,89242.0,0.0003616]
[1764960050513,0.23110721,89243.0,89242.0,0.0003616]
[1764960050941,0.23410721,89243.0,89242.0,0.0003616]
[1764960051522,0.23110721,89243.0,89242.0,0.0003616]
[1764960052017,0.23410721,89243.0,89242.0,0.0003616]
[1764960052566,0.22710721,89243.0,89242.0,0.0003616]
[1764960052952,0.23410721,89243.0,89242.0,0.0003616]
[1764960053334,0.22710721,89243.0,89242.0,0.0003616]
[1764960053782,0.23510721,89243.0,89242.0,0.0003616]
[1764960054312,0.23510721,89243.0,89222.0,0.22415959]
[1764960054313,0.01120938,89211.0,89203.0,0.02194238]
[1764960054514,0.01120938,89211.0,89201.0,0.01121063]
[1764960054515,0.22419011,89210.0,89209.0,0.03376238]
[1764960054724,0.23548628,89211.0,89209.0,0.03376238]
[1764960054725,8.882e-05,89211.0,89210.0,0.03713238]
[1764960054925,0.22427642,89211.0,89210.0,0.03713238]
[1764960055095,0.22427642,89211.0,89210.0,0.08041368]
[1764960055499,0.22427642,89211.0,89210.0,0.05590368]
[1764960056900,0.22727642,89211.0,89210.0,0.08041368]
[1764960057090,0.22727642,89211.0,89210.0,0.08241368]
[1764960057286,0.22727642,89211.0,89210.0,0.05790368]
[1764960057845,0.22692837,89211.0,89210.0,0.08241368]
[1764960058208,0.22692837,89211.0,89210.0,0.05790368]